{"text_format":"1","workbook":"xlsx","n_sheets":6,"sheets":["65 ЮФО","85 ЮФО","125 2Т ЮФО ","125 4Т ЮФО","125 ЮФО","250 ЮФО"],"not_rendered":{"charts":0,"images":2,"macros":0,"external_links":0,"defined_names":6,"comments":0,"pivot_tables":0},"unopened":[],"bounds":{"document_bytes":16777216,"sheet_cells":100000,"rows_first":2000,"rows_last":500,"rows_between":2000,"halvings":0,"cell_chars":16384,"cell_head_chars":4096},"cells_cut":0,"cells_raw":0,"read":"whole","date_system":"1900"}

{"sheet":"65 ЮФО","index":0,"n_rows":27,"n_cols":16,"rows_kept":27,"cut":false,"hidden":false,"merged":[[26,0,26,13],[6,7,6,10],[6,11,6,14],[22,7,22,13],[23,0,23,13],[25,7,25,13],[7,6,9,6],[7,7,7,8],[7,9,7,10],[7,15,9,15],[7,0,9,0],[7,1,9,1],[7,2,9,2],[7,3,9,3],[7,4,9,4],[7,5,9,5],[7,11,7,12],[7,13,7,14],[5,0,5,15],[0,0,0,15],[1,0,1,15],[2,0,2,16],[3,0,3,16],[4,0,4,16]]}
["                                                                                                "]
[" Первенство Южного Федерального округа по мотокроссу 2017 года."]
["(Код мотоспорта:0910007511Я)"]
["СВОДНЫЙ ПРОТОКОЛ ЛИЧНОГО ЗАЧЕТА по сумме 2-х этапов."]
["1-й этап: 21 - 24 апреля 2017 года - г. Волгоград; 2-й этап: 28 апреля - 01 мая 2017 года - ВДЦ \"Орленок\" (Краснодарский край, Туапсинский район,                                    п. Новомихайловский). "]
["Класс 65 куб. см. (0910141811Н/юноши)"]
[null,null,null,null,null,null,null,"1-й этап",null,null,null,"2-й этап"]
["Место","Ст. №","Фамилия,  Имя","Разряд","Город (край, район, область)","Команда","Мото","I-й заезд",null,"II-й заезд",null,"I-й заезд",null,"II-й заезд",null,"Сум Очк"]
[null,null,null,null,null,null,null,"мес","лич.","мес","лич.","мес","лич.","мес","лич."]
[null,null,null,null,null,null,null,"то","очк.","то","очк.","то","очк.","то","очк."]
[1,749,"Дубатовкин Иван","I ","г. Ставрополь","СК \"Ставрополье\"","КТМ",1,25,1,25,1,25,1,25,{"$f":"SUM(I11+K11+M11+O11)","v":100}]
[2,153,"Кучаев Тимур","II","г. Краснодар","Amto Pro","КТМ",4,18,5,16,4,18,3,20,72]
[3,41,"Снаговский Максим","I юн","г. Волгоград","лично","КТМ",6,15,4,18,5,16,"сх",0,49]
[4,25,"Курдюков Елисей","II","г. Элиста, Республика Калмыкия","СТК \"Искра\" при ДОСААФ ","КТМ",5,16,6,15,6,15,"сх",0,46]
[5,591,"Дроздов Станислав","II","г. Новочеркасск, Ростовская область","Сборная ДОСААФ России Ростовской области","КТМ",2,22,2,22,"-",0,"-",0,44]
[6,51,"Авраменко Вячеслав","III","ст. Ленинградская, Краснодарский край","ДОСААФ ст. Выселки","КТМ","-",0,"-",0,3,20,2,22,42]
[7,700,"Орлов Александр","III","г. Краснодар","Автошкола Славянска-на-Кубани","КТМ","-",0,"-",0,2,22,4,18,40]
[8,68,"Арьков Сергей","II","г. Волгоград","Городищенский УСТК ДОСААФ","КТМ",3,20,3,20,"-",0,"-",0,40]
[9,91,"Москалюк Владислав","II","г. Батайск, Ростовская обл.","лично","КТМ",7,14,"н/с",0,9,12,7,14,40]
[10,595,"Джеус Хрисанф","III","г. Краснодар","ВДЦ \"Орленок\"","КТМ","-",0,"-",0,7,14,5,16,30]
[11,222,"Джеус Дарья","III","г. Краснодар","ВДЦ \"Орленок\"","КТМ","-",0,"-",0,8,13,6,15,28]
[]
["Главный судья соревнований"]
["судья Всероссийской категории:                                  Г. И. Истратов (г. Москва; свидетельство МФР А 101)"]
[]
["Главный секретарь"]
["судья Всероссийской категории:                  А. Ю. Иванов (г. Москва, свидетельство МФР А 105; FIM 11245)      "]

{"sheet":"85 ЮФО","index":1,"n_rows":26,"n_cols":16,"rows_kept":26,"cut":false,"hidden":false,"merged":[[25,0,25,13],[7,6,9,6],[7,7,7,8],[7,9,7,10],[7,15,9,15],[7,0,9,0],[7,4,9,4],[7,11,7,12],[7,13,7,14],[21,7,21,13],[22,0,22,13],[24,7,24,13],[5,0,5,15],[7,1,9,1],[7,2,9,2],[7,3,9,3],[7,5,9,5],[6,7,6,10],[6,11,6,14],[0,0,0,15],[1,0,1,15],[2,0,2,16],[3,0,3,16],[4,0,4,16]]}
["                                                                                                "]
[" Первенство Южного Федерального округа по мотокроссу 2017 года."]
["(Код мотоспорта:0910007511Я)"]
["СВОДНЫЙ ПРОТОКОЛ ЛИЧНОГО ЗАЧЕТА по сумме 2-х этапов."]
["1-й этап: 21 - 24 апреля 2017 года - г. Волгоград; 2-й этап: 28 апреля - 01 мая 2017 года - ВДЦ \"Орленок\" (Краснодарский край, Туапсинский район,                                    п. Новомихайловский). "]
["Класс 85 куб. см. (0910151811Н/юноши)"]
[null,null,null,null,null,null,null,"1-й этап",null,null,null,"2-й этап"]
["Место","Ст. №","Фамилия,  Имя","Разряд","Город (край, район, область)","Команда","Мото","I-й заезд",null,"II-й заезд",null,"I-й заезд",null,"II-й заезд",null,"Сум очк"]
[null,null,null,null,null,null,null,"мес","лич.","мес","лич.","мес","лич.","мес","лич."]
[null,null,null,null,null,null,null,"то","очк","то","очк","то","очк","то","очк"]
[1,747,"Орлов Алексей","I ","г. Краснодар","ГБУ КК \"РЦСП №1\"/Автошкола г. Славянск-на-Кубани","Husq",1,25,1,25,1,25,1,25,{"$f":"SUM(I11+K11+M11+O11)","v":100}]
[2,795,"Кесов Даниил","кмс","г. Краснодар","ГБУ КК \"РЦСП №1\"/ДОСААФ Выселки","КТМ",5,16,2,22,2,22,3,20,80]
[3,177,"Стрелков Даниил","I  ","г. Краснодар","Автошкола г. Славянск-на-Кубани","КТМ ",3,20,4,18,3,20,2,22,80]
[4,191,"Киричко Николай","II","х. Тысячный, Краснодарский край","СК \"Ставрополье\"","КТМ ",2,22,3,20,4,18,"сх",0,60]
[5,45,"Юдин Дмитрий","I юн","р.п. Светлый Яр, Волгоградская область","СТК \"АлИг Светлый Яр\"","Yam",8,13,7,14,7,14,5,16,57]
[6,43,"Дешевой Никита","III","р.п. Светлый Яр, Волгоградская область","СТК \"АлИг Светлый Яр\"","Hon",7,14,8,13,8,13,7,14,54]
[7,707,"Шарий Артем","б/р","г. Астрахань","FMC Astrakhan","КТМ",4,18,5,16,"-",0,"-",0,34]
[8,247,"Погорелая Софья","III","г. Анапа, Краснодарский край","лично","Yam","-",0,"-",0,6,15,4,18,33]
[9,711,"Трофимов Роман","III","г. Элиста, Республика Калмыкия","СТК \"Искра\" ДОСААФ","KTM","-",0,"-",0,5,16,6,15,31]
[10,717,"Красников Андрей","III","г. Волгоград","ПОУ Волгоградская автошкола ДОСААФ России/СТК Моторпарк","Husq",6,15,6,15,"-",0,"-",0,30]
[]
["Главный судья соревнований"]
["судья Всероссийской категории:                                  Г. И. Истратов (г. Москва; свидетельство МФР А 101)"]
[]
["Главный секретарь"]
["судья Всероссийской категории:                  А. Ю. Иванов (г. Москва, свидетельство МФР А 105; FIM 11245)      "]

{"sheet":"125 2Т ЮФО ","index":2,"n_rows":19,"n_cols":16,"rows_kept":19,"cut":false,"hidden":false,"merged":[[18,0,18,13],[6,7,6,10],[6,11,6,14],[7,6,9,6],[7,7,7,8],[7,9,7,10],[14,7,14,13],[15,0,15,13],[17,7,17,13],[5,0,5,15],[7,1,9,1],[7,2,9,2],[7,3,9,3],[7,5,9,5],[7,15,9,15],[7,0,9,0],[7,4,9,4],[7,11,7,12],[7,13,7,14],[0,0,0,15],[1,0,1,15],[2,0,2,16],[3,0,3,16],[4,0,4,16]]}
["                                                                                                "]
[" Первенство Южного Федерального округа по мотокроссу 2017 года."]
["(Код мотоспорта:0910007511Я)"]
["СВОДНЫЙ ПРОТОКОЛ ЛИЧНОГО ЗАЧЕТА по сумме 2-х этапов."]
["1-й этап: 21 - 24 апреля 2017 года - г. Волгоград; 2-й этап: 28 апреля - 01 мая 2017 года - ВДЦ \"Орленок\" (Краснодарский край, Туапсинский район,                                    п. Новомихайловский). "]
["Класс 125 куб.см. 2Т \"Юноши\" (0910161811Г)"]
[null,null,null,null,null,null,null,"1-й этап",null,null,null,"2-й этап"]
["Место","Ст. №","Фамилия,  Имя","Разряд","Город (край, район, область)","Команда","Мото","I-й заезд",null,"II-й заезд",null,"I-й заезд",null,"II-й заезд",null,"Сум очк"]
[null,null,null,null,null,null,null,"мес","лич.","мес","лич.","мес","лич.","мес","лич."]
[null,null,null,null,null,null,null,"то","очк","то","очк","то","очк","то","очк"]
[1,701,"Проненко Святослав","кмс","г. Тимашевск, Краснодарский край","ГБУ КК \"РЦСП №1\"","КТМ",1,25,1,25,1,25,1,25,{"$f":"SUM(I11+K11+M11+O11)","v":100}]
[2,150,"Богданов Никита","II","г. Анапа, Краснодарский край","АНО СК \"Патриот\"","KTM","-",0,"-",0,2,22,2,22,{"$f":"SUM(I12+K12+M12+O12)","v":44}]
[3,740,"Собур Владислав","I","г. Славянск-на-Кубани, Краснодарский край","\"Лотос\"","Yam","-",0,"-",0,3,20,3,20,{"$f":"SUM(I13+K13+M13+O13)","v":40}]
[]
["Главный судья соревнований"]
["судья Всероссийской категории:                                  Г. И. Истратов (г. Москва; свидетельство МФР А 101)"]
[]
["Главный секретарь"]
["судья Всероссийской категории:                  А. Ю. Иванов (г. Москва, свидетельство МФР А 105; FIM 11245)      "]

{"sheet":"125 4Т ЮФО","index":3,"n_rows":20,"n_cols":16,"rows_kept":20,"cut":false,"hidden":false,"merged":[[7,4,9,4],[7,11,7,12],[7,13,7,14],[15,7,15,13],[16,0,16,13],[18,7,18,13],[19,0,19,13],[5,0,5,15],[7,1,9,1],[7,2,9,2],[7,3,9,3],[7,5,9,5],[6,7,6,10],[6,11,6,14],[7,6,9,6],[7,7,7,8],[7,9,7,10],[7,15,9,15],[7,0,9,0],[0,0,0,15],[1,0,1,15],[2,0,2,16],[3,0,3,16],[4,0,4,16]]}
["                                                                                                "]
[" Первенство Южного Федерального округа по мотокроссу 2017 года."]
["(Код мотоспорта:0910007511Я)"]
["СВОДНЫЙ ПРОТОКОЛ ЛИЧНОГО ЗАЧЕТА по сумме 2-х этапов."]
["1-й этап: 21 - 24 апреля 2017 года - г. Волгоград; 2-й этап: 28 апреля - 01 мая 2017 года - ВДЦ \"Орленок\" (Краснодарский край, Туапсинский район,                                                                      п. Новомихайловский). "]
["Класс 125 куб.см. 4Т \"Юниоры\"(0910161811Г)"]
[null,null,null,null,null,null,null,"I-й этап",null,null,null,"II-й этап"]
["Место","Ст. №","Фамилия,  Имя","Разряд","Город (край, район, область)","Команда","Мото","I-й заезд",null,"II-й заезд",null,"I-й заезд",null,"II-й заезд",null,"Сум очк"]
[null,null,null,null,null,null,null,"мес","лич.","мес","лич.","мес","лич.","мес","лич."]
[null,null,null,null,null,null,null,"то","очк","то","очк","то","очк","то","очк"]
[1,14,"Бурмистров Александр","II","п. Архипо-Осиповка, Краснодарский край","ДОСААФ","Husq",2,22,2,22,3,20,1,25,{"$f":"SUM(I11+K11+M11+O11)","v":89}]
[2,277,"Стрелков Алексей","I ","г. Славянск-на-Кубани, Краснодарский край","ГБУ КК \"РЦСП №1\"/Автошкола Славянск-на-Кубани","КТМ",1,25,1,25,1,25,"н/с",0,{"$f":"SUM(I12+K12+M12+O12)","v":75}]
[3,474,"Пульбери Максим","II","г. Анапа, Краснодарский край","лично","KTM","-",0,"-",0,2,22,2,22,{"$f":"SUM(I13+K13+M13+O13)","v":44}]
[4,120,"Литовка Герман","КМС","г. Краснодар","СК \"Вертикаль\"","КТМ","сх",0,"н/с",0,"-",0,"-",0,{"$f":"SUM(I14+K14+M14+O14)","v":0}]
[]
["Главный судья соревнований"]
["судья Всероссийской категории:                                  Г. И. Истратов (г. Москва; свидетельство МФР А 101)"]
[]
["Главный секретарь"]
["судья Всероссийской категории:                  А. Ю. Иванов (г. Москва, свидетельство МФР А 105; FIM 11245)      "]

{"sheet":"125 ЮФО","index":4,"n_rows":23,"n_cols":16,"rows_kept":23,"cut":false,"hidden":false,"merged":[[18,7,18,13],[19,0,19,13],[7,6,9,6],[7,7,7,8],[7,9,7,10],[7,15,9,15],[7,0,9,0],[7,4,9,4],[21,7,21,13],[22,0,22,13],[6,7,6,10],[6,11,6,14],[0,0,0,15],[1,0,1,15],[3,0,3,15],[4,0,4,15],[2,0,2,15],[5,0,5,15],[7,1,9,1],[7,2,9,2],[7,3,9,3],[7,5,9,5],[7,11,7,12],[7,13,7,14]]}
["                                                                                                "]
["Чемпионат Южного Федерального округа по мотокроссу 2017 года."]
["(Код мотоспорта:0910007511Я)"]
["СВОДНЫЙ ПРОТОКОЛ ЛИЧНОГО ЗАЧЕТА по сумме 2-х этапов."]
["1-й этап: 21 - 24 апреля 2017 года - г. Волгоград; 2-й этап: 28 апреля - 01 мая 2017 года - ВДЦ \"Орленок\" (Краснодарский край, Туапсинский район,                                                                      п. Новомихайловский). "]
["Класс 125 куб.см. (0910161811Г/мужчины)"]
[null,null,null,null,null,null,null,"I-й этап",null,null,null,"II-й этап"]
["Место","Ст. №","Фамилия,  Имя","Разряд","Город (край, район, область)","Команда","Мото","I-й заезд",null,"II-й заезд",null,"I-й заезд",null,"II-й заезд",null,"Сум очк"]
[null,null,null,null,null,null,null,"мес","лич.","мес","лич.","мес","лич.","мес","лич."]
[null,null,null,null,null,null,null,"то","очк","то","очк","то","очк","то","очк"]
[1,3,"Яровой Сергей","I ","г. Ростов-на-Дону","СК Ростовской области","Yam",3,20,1,25,6,15,3,20,{"$f":"SUM(I11+K11+M11+O11)","v":80}]
[2,37,"Прищепа Сергей","I ","г. Таганрог, Ростовская область","лично","Kaw ",1,25,3,20,5,16,4,18,79]
[3,58,"Васильев Виталий","КМС","г. Красный Сулин, Ростовская обл.","СТК \"Фаворит\"","Suz ",2,22,2,22,4,18,5,16,78]
[4,56,"Кравцов Максим","кмс","с. Успенское, Краснодарский край","СК \"Ставрополье\"","KTM","-",0,"-",0,1,25,1,25,50]
[5,46,"Погорелов Вячеслав","I ","г. Краснодар","лично","КТМ",4,18,"н/с",0,7,14,6,15,47]
[6,277,"Стрелков Алексей","I ","г. Славянск-на-Кубани, Краснодарский край","ГБУ КК \"РЦСП №1\"","KTM","-",0,"-",0,2,22,2,22,44]
[7,14,"Бурмистров Александр","I ","г. Архипо-Осиповка, Краснодарский край","ДОСААФ","Husq","-",0,"-",0,3,20,"н/с",0,20]
[]
["Главный судья соревнований"]
["судья Всероссийской категории:                                  Г. И. Истратов (г. Москва; свидетельство МФР А 101)"]
[]
["Главный секретарь"]
["судья Всероссийской категории:                  А. Ю. Иванов (г. Москва, свидетельство МФР А 105; FIM 11245)      "]

{"sheet":"250 ЮФО","index":5,"n_rows":26,"n_cols":16,"rows_kept":26,"cut":false,"hidden":false,"merged":[[7,15,9,15],[7,0,9,0],[7,4,9,4],[0,0,0,15],[1,0,1,15],[2,1,2,15],[3,0,3,15],[4,0,4,15],[24,7,24,13],[25,0,25,13],[5,0,5,15],[6,7,6,10],[6,11,6,14],[21,7,21,13],[22,0,22,13],[7,1,9,1],[7,2,9,2],[7,3,9,3],[7,5,9,5],[7,11,7,12],[7,13,7,14],[7,6,9,6],[7,7,7,8],[7,9,7,10]]}
["                                                                                                "]
["Чемпионат Южного Федерального округа по мотокроссу 2017 года."]
[null,"(Код мотоспорта:0910007511Я)"]
["СВОДНЫЙ ПРОТОКОЛ ЛИЧНОГО ЗАЧЕТА по сумме 2-х этапов."]
["1-й этап: 21 - 24 апреля 2017 года - г. Волгоград; 2-й этап: 28 апреля - 01 мая 2017 года - ВДЦ \"Орленок\" (Краснодарский край, Туапсинский район,                                                                      п. Новомихайловский). "]
["Класс 250 куб.см. (мужчины)"]
[null,null,null,null,null,null,null,"I-й этап",null,null,null,"II-й этап"]
["Место","Ст. №","Фамилия,  Имя","Разряд","Город (край, район, область)","Команда","Мото","I-й заезд",null,"II-й заезд",null,"I-й заезд",null,"II-й заезд",null,"Сум Очк"]
[null,null,null,null,null,null,null,"мес","лич.","мес","лич.","мес","лич.","мес","лич."]
[null,null,null,null,null,null,null,"то","очк.","то","очк.","то","очк.","то","очк."]
[1,595,"Михайлов Евгений","МС","г. Краснодар","ГБУ КК \"РЦСП №1\"","Husq",1,25,1,25,1,25,1,25,{"$f":"SUM(I11+K11+M11+O11)","v":100}]
[2,444,"Бугреев Александр","МСМК","г. Камышлов, Челябинская обл.","лично","КТМ",2,22,2,22,2,22,2,22,88]
[3,42,"Лукаш Юрий","МС","г. Волгоград","СТК \"АлИг\"","Hon",3,20,4,18,5,16,5,16,70]
[4,575,"Клоков Дмитрий","кмс","г. Астрахань","ДОСААФ России ФМС АО","Yam",4,18,5,16,6,15,6,15,64]
[5,791,"Золотцев Роман","КМС","г. Батайск, Ростовская обл.","лично","Yam","сх",0,3,20,3,20,3,20,60]
[6,129,"Курдюков Михаил","I","г. Элиста, Республика Калмыкия","СТК \"Искра\" при ДОСААФ ","Hon",7,14,6,15,8,13,8,13,55]
[7,800,"Васильченко Вячеслав","I","г. Астрахань","ДОСААФ России ФМС АО","КТМ",5,16,7,14,9,12,9,12,54]
[8,61,"Щербаев Артем","I","г. Сочи, Краснодарский край","ООО \"Вертикаль\"","КТМ","-",0,"-",0,4,18,4,18,36]
[9,136,"Пучнин Сергей","I","г. Волжский","Волжская автошкола ДОСАААФ","Hon",6,15,8,13,"-",0,"-",0,28]
[10,113,"Волков Максим","кмс","г. Ростов-на-Дону","лично","Yam","-",0,"-",0,7,14,7,14,28]
[]
["Главный судья соревнований"]
["судья Всероссийской категории:                                  Г. И. Истратов (г. Москва; свидетельство МФР А 101)"]
[]
["Главный секретарь"]
["судья Всероссийской категории:                  А. Ю. Иванов (г. Москва, свидетельство МФР А 105; FIM 11245)      "]